[Event "Titled Tuesday Blitz July 11 Late 2023"]
[White "Chor, Kevin"]
[Black "Ovchinnikov, Vsevolod"]
[WhiteFideId "2090740"]
[BlackFideId "24176842"]
[WhiteElo "2546"]
[BlackElo "2646"]
[Result "0-1"]
[Round "9"]
[TimeControl "180+2"]
[Date "2023.07.11"]
[WhiteClock "0:00:00"]
[BlackClock "0:00:09"]
[Board "38"]

1. e4 {[%clk 0:03:00]}  g6 {[%clk 0:03:00]} 2. d4 {[%clk 0:03:00]}  Bg7 {[%clk 0:03:00]} 3. Nc3 {[%clk 0:03:01]}  a6 {[%clk 0:03:01]} 4. f4 {[%clk 0:02:57]}  b5 {[%clk 0:03:01]} 5. Nf3 {[%clk 0:02:58]}  d6 {[%clk 0:03:00]} 6. Bd3 {[%clk 0:02:48]}  Nd7 {[%clk 0:03:00]} 7. a4 {[%clk 0:02:47]}  b4 {[%clk 0:03:00]} 8. Ne2 {[%clk 0:02:47]}  c5 {[%clk 0:02:58]} 9. c3 {[%clk 0:02:48]}  bxc3 {[%clk 0:02:57]} 10. bxc3 {[%clk 0:02:48]}  cxd4 {[%clk 0:02:33]} 11. cxd4 {[%clk 0:02:49]}  Ngf6 {[%clk 0:02:26]} 12. e5 {[%clk 0:02:23]}  Ng4 {[%clk 0:02:00]} 13. Ng3 {[%clk 0:02:07]}  O-O {[%clk 0:01:42]} 14. Ng5 {[%clk 0:01:54]}  Nh6 {[%clk 0:01:38]} 15. O-O {[%clk 0:01:46]}  dxe5 {[%clk 0:01:22]} 16. Be4 {[%clk 0:01:29]}  Rb8 {[%clk 0:01:11]} 17. fxe5 {[%clk 0:01:25]}  Qb6 {[%clk 0:00:42]} 18. Kh1 {[%clk 0:01:21]}  Bb7 {[%clk 0:00:20]} 19. Ba3 {[%clk 0:00:56]}  Bxe4 {[%clk 0:00:19]} 20. N3xe4 {[%clk 0:00:55]}  Rbe8 {[%clk 0:00:12]} 21. Rb1 {[%clk 0:00:50]}  Qc6 {[%clk 0:00:12]} 22. d5 {[%clk 0:00:46]}  Qc4 {[%clk 0:00:06]} 23. d6 {[%clk 0:00:21]}  e6 {[%clk 0:00:07]} 24. Rb4 {[%clk 0:00:20]}  Qa2 {[%clk 0:00:03]} 25. Bb2 {[%clk 0:00:14]}  Rb8 {[%clk 0:00:04]} 26. Nc3 {[%clk 0:00:08]}  Qxb2 {[%clk 0:00:03]} 27. Rxb2 {[%clk 0:00:08]}  Rxb2 {[%clk 0:00:03]} 28. Nf3 {[%clk 0:00:05]}  Nxe5 {[%clk 0:00:02]} 29. Nxe5 {[%clk 0:00:05]}  Bxe5 {[%clk 0:00:03]} 30. d7 {[%clk 0:00:06]}  Rd8 {[%clk 0:00:04]} 31. Ne4 {[%clk 0:00:06]}  Nf5 {[%clk 0:00:04]} 32. Qd3 {[%clk 0:00:05]}  Rb7 {[%clk 0:00:03]} 33. Nc5 {[%clk 0:00:04]}  Rc7 {[%clk 0:00:03]} 34. Nxa6 {[%clk 0:00:05]}  Rcxd7 {[%clk 0:00:04]} 35. Qe2 {[%clk 0:00:06]}  Bg7 {[%clk 0:00:04]} 36. Nc5 {[%clk 0:00:05]}  Nd4 {[%clk 0:00:04]} 37. Qe4 {[%clk 0:00:05]}  Rc7 {[%clk 0:00:04]} 38. Nd3 {[%clk 0:00:05]}  h5 {[%clk 0:00:04]} 39. h3 {[%clk 0:00:05]}  Ra7 {[%clk 0:00:05]} 40. Nc5 {[%clk 0:00:05]}  Rd5 {[%clk 0:00:05]} 41. Rc1 {[%clk 0:00:05]}  Ra5 {[%clk 0:00:04]} 42. Qd3 {[%clk 0:00:03]}  Rdxc5 {[%clk 0:00:04]} 43. Rxc5 {[%clk 0:00:04]}  Rxc5 {[%clk 0:00:05]} 44. Qa6 {[%clk 0:00:04]}  Be5 {[%clk 0:00:04]} 45. Kg1 {[%clk 0:00:04]}  Rc2 {[%clk 0:00:04]} 46. Kf1 {[%clk 0:00:05]}  Kg7 {[%clk 0:00:04]} 47. a5 {[%clk 0:00:04]}  Ra2 {[%clk 0:00:03]} 48. Qd3 {[%clk 0:00:05]}  Rxa5 {[%clk 0:00:03]} 49. Kf2 {[%clk 0:00:05]}  Rd5 {[%clk 0:00:03]} 50. Qe4 {[%clk 0:00:04]}  Bf6 {[%clk 0:00:04]} 51. g4 {[%clk 0:00:05]}  hxg4 {[%clk 0:00:04]} 52. hxg4 {[%clk 0:00:06]}  g5 {[%clk 0:00:05]} 53. Kg2 {[%clk 0:00:06]}  Rc5 {[%clk 0:00:05]} 54. Kg1 {[%clk 0:00:06]}  Rc3 {[%clk 0:00:05]} 55. Kf1 {[%clk 0:00:06]}  Rf3+ {[%clk 0:00:06]} 56. Ke1 {[%clk 0:00:07]}  Rf4 {[%clk 0:00:07]} 57. Qh1 {[%clk 0:00:06]}  Rxg4 {[%clk 0:00:07]} 58. Kd2 {[%clk 0:00:07]}  Rf4 {[%clk 0:00:07]} 59. Kd3 {[%clk 0:00:07]}  Nf5 {[%clk 0:00:08]} 60. Kd2 {[%clk 0:00:06]}  Rd4+ {[%clk 0:00:08]} 61. Kc2 {[%clk 0:00:06]}  Rh4 {[%clk 0:00:09]} 62. Qe1 {[%clk 0:00:04]}  g4 {[%clk 0:00:09]} 63. Qe2 {[%clk 0:00:04]}  g3 {[%clk 0:00:10]} 64. Qf1 {[%clk 0:00:02]}  Rh2+ {[%clk 0:00:10]} 65. Kb3 {[%clk 0:00:02]}  Be5 {[%clk 0:00:10]} 66. Qf3 {[%clk 0:00:03]}  g2 {[%clk 0:00:10]} 67. Qg4+ {[%clk 0:00:04]}  Kf6 {[%clk 0:00:10]} 68. Qg8 {[%clk 0:00:04]}  Rh3+ {[%clk 0:00:09]} 69. Kb4 {[%clk 0:00:03]}  Rg3 {[%clk 0:00:09]} 70. Qd8+ {[%clk 0:00:00]}  Kg7 {[%clk 0:00:09]} 0-1


[Site "https://www.chess.com"]

[Event "Titled Tuesday Blitz July 11 Late 2023"]
[White "Fiorito, Joaquin"]
[Black "SicilianPanzer"]
[WhiteFideId "180173"]
[WhiteElo "2623"]
[BlackElo "2296"]
[Result "1/2-1/2"]
[Round "9"]
[TimeControl "180+2"]
[Date "2023.07.11"]
[WhiteClock "0:00:12"]
[BlackClock "0:00:10"]
[Board "43"]

1. d4 {[%clk 0:03:00]}  Nf6 {[%clk 0:02:59]} 2. Nc3 {[%clk 0:03:01]}  d5 {[%clk 0:02:59]} 3. Bf4 {[%clk 0:03:02]}  a6 {[%clk 0:02:59]} 4. e3 {[%clk 0:03:02]}  h6 {[%clk 0:02:59]} 5. Nf3 {[%clk 0:02:55]}  c5 {[%clk 0:02:47]} 6. dxc5 {[%clk 0:02:55]}  Nc6 {[%clk 0:02:42]} 7. a3 {[%clk 0:02:55]}  Bg4 {[%clk 0:02:40]} 8. Be2 {[%clk 0:02:30]}  Bxf3 {[%clk 0:02:33]} 9. Bxf3 {[%clk 0:02:29]}  e5 {[%clk 0:02:32]} 10. Bg3 {[%clk 0:02:30]}  e4 {[%clk 0:02:31]} 11. Be2 {[%clk 0:02:30]}  Bxc5 {[%clk 0:02:31]} 12. O-O {[%clk 0:02:31]}  O-O {[%clk 0:02:27]} 13. b4 {[%clk 0:02:32]}  Ba7 {[%clk 0:02:25]} 14. Rb1 {[%clk 0:02:22]}  d4 {[%clk 0:02:23]} 15. exd4 {[%clk 0:02:19]}  Nxd4 {[%clk 0:01:57]} 16. Na4 {[%clk 0:02:13]}  Rc8 {[%clk 0:01:53]} 17. c4 {[%clk 0:02:05]}  b5 {[%clk 0:01:24]} 18. Nb2 {[%clk 0:02:03]}  bxc4 {[%clk 0:01:11]} 19. Bxc4 {[%clk 0:01:58]}  Qe7 {[%clk 0:01:09]} 20. Kh1 {[%clk 0:01:45]}  a5 {[%clk 0:01:06]} 21. Qa4 {[%clk 0:01:36]}  axb4 {[%clk 0:01:01]} 22. axb4 {[%clk 0:01:37]}  Nf5 {[%clk 0:00:58]} 23. Rfe1 {[%clk 0:01:19]}  Nxg3+ {[%clk 0:00:55]} 24. fxg3 {[%clk 0:01:20]}  Ng4 {[%clk 0:00:54]} 25. h3 {[%clk 0:01:19]}  Nf2+ {[%clk 0:00:35]} 26. Kh2 {[%clk 0:01:17]}  Bd4 {[%clk 0:00:33]} 27. b5 {[%clk 0:01:12]}  Qg5 {[%clk 0:00:30]} 28. Bxf7+ {[%clk 0:01:08]}  Rxf7 {[%clk 0:00:27]} 29. Qxd4 {[%clk 0:01:09]}  Qxb5 {[%clk 0:00:24]} 30. Rbc1 {[%clk 0:01:02]}  Rcf8 {[%clk 0:00:23]} 31. Rc5 {[%clk 0:00:59]}  Qe8 {[%clk 0:00:19]} 32. Re5 {[%clk 0:00:56]}  Qb8 {[%clk 0:00:18]} 33. Rd5 {[%clk 0:00:48]}  Kh8 {[%clk 0:00:14]} 34. Rd6 {[%clk 0:00:46]}  Kh7 {[%clk 0:00:12]} 35. Nc4 {[%clk 0:00:44]}  Qb3 {[%clk 0:00:11]} 36. Nd2 {[%clk 0:00:39]}  Qc2 {[%clk 0:00:10]} 37. Nxe4 {[%clk 0:00:38]}  Nxe4 {[%clk 0:00:10]} 38. Qxe4+ {[%clk 0:00:39]}  Qxe4 {[%clk 0:00:10]} 39. Rxe4 {[%clk 0:00:40]}  Rf6 {[%clk 0:00:11]} 40. Rd2 {[%clk 0:00:39]}  Rf2 {[%clk 0:00:10]} 41. Ree2 {[%clk 0:00:38]}  Rxe2 {[%clk 0:00:10]} 42. Rxe2 {[%clk 0:00:39]}  Rf6 {[%clk 0:00:11]} 43. g4 {[%clk 0:00:39]}  Kg6 {[%clk 0:00:11]} 44. Kg3 {[%clk 0:00:40]}  Ra6 {[%clk 0:00:12]} 45. Re3 {[%clk 0:00:40]}  Ra4 {[%clk 0:00:12]} 46. Re6+ {[%clk 0:00:39]}  Kf7 {[%clk 0:00:12]} 47. Re3 {[%clk 0:00:39]}  Rb4 {[%clk 0:00:13]} 48. Kf3 {[%clk 0:00:38]}  Rc4 {[%clk 0:00:13]} 49. Re4 {[%clk 0:00:38]}  Rc3+ {[%clk 0:00:13]} 50. Kf4 {[%clk 0:00:38]}  Rc2 {[%clk 0:00:14]} 51. g3 {[%clk 0:00:37]}  Kf6 {[%clk 0:00:15]} 52. Ra4 {[%clk 0:00:35]}  Rf2+ {[%clk 0:00:15]} 53. Ke3 {[%clk 0:00:35]}  Rb2 {[%clk 0:00:15]} 54. Ra6+ {[%clk 0:00:34]}  Kf7 {[%clk 0:00:15]} 55. Rd6 {[%clk 0:00:31]}  Rb3+ {[%clk 0:00:15]} 56. Rd3 {[%clk 0:00:31]}  Rb4 {[%clk 0:00:16]} 57. Kf3 {[%clk 0:00:30]}  Kf6 {[%clk 0:00:16]} 58. h4 {[%clk 0:00:30]}  Kf7 {[%clk 0:00:16]} 59. Re3 {[%clk 0:00:29]}  Kf6 {[%clk 0:00:16]} 60. Re4 {[%clk 0:00:29]}  Rb3+ {[%clk 0:00:17]} 61. Re3 {[%clk 0:00:29]}  Rb4 {[%clk 0:00:16]} 62. Rc3 {[%clk 0:00:28]}  Rd4 {[%clk 0:00:16]} 63. Rc6+ {[%clk 0:00:28]}  Kf7 {[%clk 0:00:16]} 64. Rc5 {[%clk 0:00:24]}  Rb4 {[%clk 0:00:16]} 65. g5 {[%clk 0:00:24]}  Rb3+ {[%clk 0:00:15]} 66. Kg4 {[%clk 0:00:24]}  hxg5 {[%clk 0:00:11]} 67. Rxg5 {[%clk 0:00:25]}  Rb4+ {[%clk 0:00:11]} 68. Kh5 {[%clk 0:00:24]}  Rb6 {[%clk 0:00:10]} 69. Rf5+ {[%clk 0:00:24]}  Ke7 {[%clk 0:00:09]} 70. Kg5 {[%clk 0:00:23]}  Rb3 {[%clk 0:00:07]} 71. g4 {[%clk 0:00:23]}  Rb6 {[%clk 0:00:08]} 72. h5 {[%clk 0:00:23]}  Rh6 {[%clk 0:00:08]} 73. Ra5 {[%clk 0:00:22]}  Kf7 {[%clk 0:00:08]} 74. Ra7+ {[%clk 0:00:22]}  Kg8 {[%clk 0:00:09]} 75. Rd7 {[%clk 0:00:21]}  Rb6 {[%clk 0:00:08]} 76. Re7 {[%clk 0:00:21]}  Kf8 {[%clk 0:00:08]} 77. Re5 {[%clk 0:00:21]}  Kg8 {[%clk 0:00:08]} 78. Kf5 {[%clk 0:00:20]}  Rc6 {[%clk 0:00:08]} 79. g5 {[%clk 0:00:20]}  g6+ {[%clk 0:00:07]} 80. hxg6 {[%clk 0:00:18]}  Kg7 {[%clk 0:00:08]} 81. Re7+ {[%clk 0:00:18]}  Kg8 {[%clk 0:00:08]} 82. Re6 {[%clk 0:00:19]}  Rc1 {[%clk 0:00:07]} 83. Re4 {[%clk 0:00:17]}  Rf1+ {[%clk 0:00:07]} 84. Rf4 {[%clk 0:00:17]}  Ra1 {[%clk 0:00:07]} 85. Re4 {[%clk 0:00:16]}  Ra5+ {[%clk 0:00:07]} 86. Re5 {[%clk 0:00:17]}  Ra1 {[%clk 0:00:08]} 87. Re8+ {[%clk 0:00:17]}  Kg7 {[%clk 0:00:08]} 88. Re7+ {[%clk 0:00:17]}  Kg8 {[%clk 0:00:08]} 89. Rd7 {[%clk 0:00:16]}  Rf1+ {[%clk 0:00:08]} 90. Ke5 {[%clk 0:00:17]}  Re1+ {[%clk 0:00:08]} 91. Kf6 {[%clk 0:00:18]}  Rf1+ {[%clk 0:00:09]} 92. Ke6 {[%clk 0:00:17]}  Re1+ {[%clk 0:00:09]} 93. Kd6 {[%clk 0:00:16]}  Rd1+ {[%clk 0:00:10]} 94. Ke7 {[%clk 0:00:17]}  Re1+ {[%clk 0:00:08]} 95. Kf6 {[%clk 0:00:14]}  Rf1+ {[%clk 0:00:08]} 96. Ke5 {[%clk 0:00:15]}  Re1+ {[%clk 0:00:09]} 97. Kf4 {[%clk 0:00:16]}  Rf1+ {[%clk 0:00:09]} 98. Kg3 {[%clk 0:00:16]}  Rg1+ {[%clk 0:00:10]} 99. Kf4 {[%clk 0:00:17]}  Rf1+ {[%clk 0:00:10]} 100. Ke3 {[%clk 0:00:17]}  Re1+ {[%clk 0:00:11]} 101. Kf3 {[%clk 0:00:17]}  Rf1+ {[%clk 0:00:11]} 102. Kg2 {[%clk 0:00:17]}  Re1 {[%clk 0:00:10]} 103. Kg3 {[%clk 0:00:13]}  Rg1+ {[%clk 0:00:10]} 104. Kf4 {[%clk 0:00:12]}  Rf1+ {[%clk 0:00:10]} 1/2-1/2


[Site "https://www.chess.com"]

[Event "Titled Tuesday Blitz July 11 Late 2023"]
[White "Krzyzanowski, Marcin"]
[Black "brm72"]
[WhiteFideId "1132199"]
[WhiteElo "2765"]
[BlackElo "2535"]
[Result "1-0"]
[Round "9"]
[TimeControl "180+2"]
[Date "2023.07.11"]
[WhiteClock "0:00:03"]
[BlackClock "0:00:05"]
[Board "46"]

1. d4 {[%clk 0:03:00]}  Nf6 {[%clk 0:02:59]} 2. Nf3 {[%clk 0:02:56]}  g6 {[%clk 0:02:59]} 3. Nbd2 {[%clk 0:02:48]}  d5 {[%clk 0:02:58]} 4. b4 {[%clk 0:02:48]}  Bg7 {[%clk 0:02:57]} 5. Bb2 {[%clk 0:02:48]}  O-O {[%clk 0:02:56]} 6. e3 {[%clk 0:02:48]}  Bf5 {[%clk 0:02:55]} 7. c4 {[%clk 0:02:47]}  a5 {[%clk 0:02:49]} 8. b5 {[%clk 0:02:44]}  c6 {[%clk 0:02:49]} 9. a4 {[%clk 0:02:38]}  Ne4 {[%clk 0:02:44]} 10. Nxe4 {[%clk 0:02:27]}  Bxe4 {[%clk 0:02:41]} 11. Nd2 {[%clk 0:02:27]}  Bf5 {[%clk 0:02:41]} 12. Be2 {[%clk 0:02:23]}  Nd7 {[%clk 0:01:46]} 13. O-O {[%clk 0:02:14]}  e5 {[%clk 0:01:32]} 14. cxd5 {[%clk 0:01:47]}  exd4 {[%clk 0:01:30]} 15. dxc6 {[%clk 0:01:36]}  bxc6 {[%clk 0:01:14]} 16. bxc6 {[%clk 0:01:10]}  dxe3 {[%clk 0:01:08]} 17. Bxg7 {[%clk 0:01:10]}  Kxg7 {[%clk 0:01:05]} 18. fxe3 {[%clk 0:00:22]}  Ne5 {[%clk 0:01:04]} 19. Bb5 {[%clk 0:00:22]}  Qb6 {[%clk 0:01:04]} 20. Kh1 {[%clk 0:00:16]}  Nxc6 {[%clk 0:01:03]} 21. Nc4 {[%clk 0:00:12]}  Qc5 {[%clk 0:01:01]} 22. Nd6 {[%clk 0:00:12]}  Ne7 {[%clk 0:00:56]} 23. Rc1 {[%clk 0:00:10]}  Qxe3 {[%clk 0:00:51]} 24. Re1 {[%clk 0:00:09]}  Qg5 {[%clk 0:00:50]} 25. Qd4+ {[%clk 0:00:08]}  Kg8 {[%clk 0:00:50]} 26. h4 {[%clk 0:00:07]}  Qh6 {[%clk 0:00:45]} 27. Rc4 {[%clk 0:00:04]}  Be6 {[%clk 0:00:42]} 28. Rc3 {[%clk 0:00:02]}  Qg7 {[%clk 0:00:41]} 29. Qxg7+ {[%clk 0:00:02]}  Kxg7 {[%clk 0:00:42]} 30. Rce3 {[%clk 0:00:02]}  Nf5 {[%clk 0:00:42]} 31. Nxf5+ {[%clk 0:00:02]}  Bxf5 {[%clk 0:00:43]} 32. Re7 {[%clk 0:00:02]}  h5 {[%clk 0:00:28]} 33. Kh2 {[%clk 0:00:03]}  Rad8 {[%clk 0:00:26]} 34. Ra7 {[%clk 0:00:03]}  Ra8 {[%clk 0:00:26]} 35. Ree7 {[%clk 0:00:02]}  Kf6 {[%clk 0:00:21]} 36. Rxf7+ {[%clk 0:00:02]}  Rxf7 {[%clk 0:00:19]} 37. Rxa8 {[%clk 0:00:03]}  Rc7 {[%clk 0:00:18]} 38. Ra6+ {[%clk 0:00:02]}  Ke5 {[%clk 0:00:17]} 39. Rxa5 {[%clk 0:00:03]}  Kf4 {[%clk 0:00:16]} 40. Be2 {[%clk 0:00:02]}  Rc2 {[%clk 0:00:16]} 41. Bf3 {[%clk 0:00:02]}  Ra2 {[%clk 0:00:15]} 42. Ra7 {[%clk 0:00:02]}  Ra3 {[%clk 0:00:12]} 43. a5 {[%clk 0:00:02]}  Ra2 {[%clk 0:00:12]} 44. a6 {[%clk 0:00:02]}  Bg4 {[%clk 0:00:10]} 45. Rf7+ {[%clk 0:00:01]}  Ke5 {[%clk 0:00:10]} 46. Bxg4 {[%clk 0:00:02]}  hxg4 {[%clk 0:00:10]} 47. a7 {[%clk 0:00:02]}  Ra3 {[%clk 0:00:10]} 48. Rb7 {[%clk 0:00:01]}  Kf4 {[%clk 0:00:10]} 49. Rf7+ {[%clk 0:00:01]}  Ke5 {[%clk 0:00:10]} 50. Rg7 {[%clk 0:00:01]}  Kf6 {[%clk 0:00:10]} 51. Rc7 {[%clk 0:00:01]}  Kf5 {[%clk 0:00:10]} 52. Rc5+ {[%clk 0:00:02]}  Kf4 {[%clk 0:00:10]} 53. Rc4+ {[%clk 0:00:02]}  Kf5 {[%clk 0:00:10]} 54. Rc5+ {[%clk 0:00:02]}  Kf4 {[%clk 0:00:11]} 55. g3+ {[%clk 0:00:03]}  Kf3 {[%clk 0:00:09]} 56. Rc3+ {[%clk 0:00:03]}  Rxc3 {[%clk 0:00:07]} 57. a8=Q+ {[%clk 0:00:04]}  Kf2 {[%clk 0:00:08]} 58. Qa7+ {[%clk 0:00:03]}  Ke2 {[%clk 0:00:07]} 59. Qe7+ {[%clk 0:00:03]}  Re3 {[%clk 0:00:07]} 60. Qg5 {[%clk 0:00:03]}  Kf2 {[%clk 0:00:05]} 61. Qxg4 {[%clk 0:00:03]} 1-0


[Site "https://www.chess.com"]

[Event "Titled Tuesday Blitz July 11 Late 2023"]
[White "Oro, Faustino"]
[Black "Janaszak, Dawid"]
[WhiteFideId "20000197"]
[BlackFideId "1119206"]
[WhiteElo "2723"]
[BlackElo "2534"]
[Result "1-0"]
[Round "9"]
[TimeControl "180+2"]
[Date "2023.07.11"]
[WhiteClock "0:00:05"]
[BlackClock "0:00:50"]
[Board "47"]

1. e4 {[%clk 0:03:00]}  c5 {[%clk 0:02:59]} 2. Nf3 {[%clk 0:03:01]}  Nc6 {[%clk 0:02:58]} 3. d4 {[%clk 0:03:00]}  cxd4 {[%clk 0:02:59]} 4. Nxd4 {[%clk 0:03:01]}  g6 {[%clk 0:02:59]} 5. c4 {[%clk 0:02:51]}  Bg7 {[%clk 0:02:58]} 6. Be3 {[%clk 0:02:51]}  Qb6 {[%clk 0:02:59]} 7. Nb3 {[%clk 0:02:45]}  Qd8 {[%clk 0:02:58]} 8. Nc3 {[%clk 0:02:45]}  Bxc3+ {[%clk 0:02:58]} 9. bxc3 {[%clk 0:02:45]}  d6 {[%clk 0:02:59]} 10. Be2 {[%clk 0:02:43]}  Nf6 {[%clk 0:02:57]} 11. f3 {[%clk 0:02:43]}  Be6 {[%clk 0:02:54]} 12. O-O {[%clk 0:02:42]}  b6 {[%clk 0:02:53]} 13. Nd4 {[%clk 0:02:36]}  O-O {[%clk 0:02:50]} 14. Nxc6 {[%clk 0:02:35]}  Qc7 {[%clk 0:02:44]} 15. Nd4 {[%clk 0:02:28]}  Bxc4 {[%clk 0:02:45]} 16. Bxc4 {[%clk 0:02:25]}  Qxc4 {[%clk 0:02:46]} 17. Qd2 {[%clk 0:02:21]}  Rac8 {[%clk 0:02:45]} 18. Rfc1 {[%clk 0:02:21]}  Nd7 {[%clk 0:02:42]} 19. Qe2 {[%clk 0:02:12]}  Qa4 {[%clk 0:02:42]} 20. Qb5 {[%clk 0:02:10]}  Rc4 {[%clk 0:02:34]} 21. Qxa4 {[%clk 0:02:08]}  Rxa4 {[%clk 0:02:35]} 22. Kf2 {[%clk 0:02:05]}  Rc8 {[%clk 0:02:35]} 23. Ke2 {[%clk 0:02:05]}  Ne5 {[%clk 0:02:32]} 24. Bd2 {[%clk 0:01:50]}  h5 {[%clk 0:02:28]} 25. Nc2 {[%clk 0:01:42]}  Kf8 {[%clk 0:02:19]} 26. Ne3 {[%clk 0:01:39]}  Ke8 {[%clk 0:02:18]} 27. Rcb1 {[%clk 0:01:23]}  Rc5 {[%clk 0:02:11]} 28. Rb4 {[%clk 0:01:22]}  Ra6 {[%clk 0:02:10]} 29. Nd5 {[%clk 0:00:55]}  Kd7 {[%clk 0:02:01]} 30. a4 {[%clk 0:00:51]}  Rca5 {[%clk 0:01:55]} 31. f4 {[%clk 0:00:39]}  Nc6 {[%clk 0:01:49]} 32. Rc4 {[%clk 0:00:38]}  f6 {[%clk 0:01:39]} 33. Rxc6 {[%clk 0:00:34]}  Kxc6 {[%clk 0:01:37]} 34. Nb4+ {[%clk 0:00:35]}  Kd7 {[%clk 0:01:38]} 35. Nxa6 {[%clk 0:00:35]}  Rxa6 {[%clk 0:01:38]} 36. Kd3 {[%clk 0:00:36]}  b5 {[%clk 0:01:39]} 37. a5 {[%clk 0:00:36]}  Rc6 {[%clk 0:01:37]} 38. a6 {[%clk 0:00:32]}  Rc4 {[%clk 0:01:34]} 39. Be3 {[%clk 0:00:27]}  Rc7 {[%clk 0:01:30]} 40. Ra5 {[%clk 0:00:23]}  Kc6 {[%clk 0:01:30]} 41. c4 {[%clk 0:00:24]}  bxc4+ {[%clk 0:01:28]} 42. Kxc4 {[%clk 0:00:25]}  e6 {[%clk 0:01:26]} 43. Rb5 {[%clk 0:00:22]}  Kd7+ {[%clk 0:01:20]} 44. Kb4 {[%clk 0:00:22]}  Kc8 {[%clk 0:01:20]} 45. Bd4 {[%clk 0:00:16]}  e5 {[%clk 0:01:17]} 46. fxe5 {[%clk 0:00:17]}  fxe5 {[%clk 0:01:18]} 47. Be3 {[%clk 0:00:16]}  Rc6 {[%clk 0:01:18]} 48. Ka5 {[%clk 0:00:12]}  Rc3 {[%clk 0:01:18]} 49. Bxa7 {[%clk 0:00:10]}  Ra3+ {[%clk 0:01:16]} 50. Kb6 {[%clk 0:00:10]}  Ra2 {[%clk 0:01:09]} 51. Rb3 {[%clk 0:00:10]}  Rc2 {[%clk 0:01:01]} 52. Kb5 {[%clk 0:00:09]}  Kc7 {[%clk 0:00:55]} 53. Bb6+ {[%clk 0:00:09]}  Kb8 {[%clk 0:00:55]} 54. Rd3 {[%clk 0:00:05]}  Rb2+ {[%clk 0:00:53]} 55. Kc6 {[%clk 0:00:06]}  Ra2 {[%clk 0:00:54]} 56. a7+ {[%clk 0:00:05]}  Ka8 {[%clk 0:00:54]} 57. Rxd6 {[%clk 0:00:06]}  Rc2+ {[%clk 0:00:54]} 58. Kd7 {[%clk 0:00:06]}  Kb7 {[%clk 0:00:54]} 59. Rxg6 {[%clk 0:00:07]}  Re2 {[%clk 0:00:52]} 60. Rg8 {[%clk 0:00:05]}  Rd2+ {[%clk 0:00:52]} 61. Ke6 {[%clk 0:00:05]}  Ra2 {[%clk 0:00:50]} 62. Rb8+ {[%clk 0:00:05]} 1-0


[Site "https://www.chess.com"]

[Event "Titled Tuesday Blitz July 11 Late 2023"]
[White "Deng, Henry"]
[Black "Jaferian, Koosha"]
[WhiteFideId "30965454"]
[BlackFideId "12507440"]
[WhiteElo "2521"]
[BlackElo "2703"]
[Result "0-1"]
[Round "9"]
[TimeControl "180+2"]
[Date "2023.07.11"]
[WhiteClock "0:00:03"]
[BlackClock "0:00:09"]
[Board "48"]

1. e4 {[%clk 0:03:00]}  c6 {[%clk 0:02:59]} 2. d4 {[%clk 0:02:58]}  d5 {[%clk 0:03:00]} 3. Nd2 {[%clk 0:02:59]}  dxe4 {[%clk 0:03:01]} 4. Nxe4 {[%clk 0:03:00]}  Bf5 {[%clk 0:03:00]} 5. Ng3 {[%clk 0:03:00]}  Bg6 {[%clk 0:03:01]} 6. h4 {[%clk 0:03:00]}  h6 {[%clk 0:03:01]} 7. Nf3 {[%clk 0:03:00]}  e6 {[%clk 0:03:02]} 8. h5 {[%clk 0:03:00]}  Bh7 {[%clk 0:03:02]} 9. Bd3 {[%clk 0:03:00]}  Bxd3 {[%clk 0:03:02]} 10. Qxd3 {[%clk 0:03:01]}  Nf6 {[%clk 0:03:01]} 11. Ne4 {[%clk 0:03:00]}  Nbd7 {[%clk 0:02:45]} 12. c4 {[%clk 0:02:51]}  Be7 {[%clk 0:02:42]} 13. Bd2 {[%clk 0:02:42]}  Qc7 {[%clk 0:02:40]} 14. O-O-O {[%clk 0:02:39]}  O-O {[%clk 0:02:40]} 15. Nxf6+ {[%clk 0:02:36]}  Nxf6 {[%clk 0:02:38]} 16. Kb1 {[%clk 0:02:32]}  b5 {[%clk 0:02:38]} 17. Rc1 {[%clk 0:02:28]}  Qb7 {[%clk 0:02:35]} 18. Ne5 {[%clk 0:02:20]}  Rab8 {[%clk 0:02:26]} 19. c5 {[%clk 0:02:04]}  Nd5 {[%clk 0:02:24]} 20. g4 {[%clk 0:02:03]}  Bg5 {[%clk 0:02:13]} 21. Rcf1 {[%clk 0:01:42]}  Bxd2 {[%clk 0:01:48]} 22. Qxd2 {[%clk 0:01:41]}  f6 {[%clk 0:01:49]} 23. Ng6 {[%clk 0:01:36]}  Rfd8 {[%clk 0:01:49]} 24. f4 {[%clk 0:01:33]}  b4 {[%clk 0:01:41]} 25. Ka1 {[%clk 0:01:18]}  Qa6 {[%clk 0:01:28]} 26. g5 {[%clk 0:01:05]}  Rb5 {[%clk 0:01:10]} 27. gxh6 {[%clk 0:00:42]}  Ra5 {[%clk 0:01:11]} 28. a3 {[%clk 0:00:42]}  Nc3 {[%clk 0:00:49]} 29. bxc3 {[%clk 0:00:12]}  Rxa3+ {[%clk 0:00:48]} 30. Kb1 {[%clk 0:00:12]}  Ra1+ {[%clk 0:00:49]} 31. Kc2 {[%clk 0:00:12]}  Ra2+ {[%clk 0:00:50]} 32. Kd1 {[%clk 0:00:12]}  Rxd2+ {[%clk 0:00:50]} 33. Kxd2 {[%clk 0:00:13]}  bxc3+ {[%clk 0:00:41]} 34. Ke3 {[%clk 0:00:13]}  gxh6 {[%clk 0:00:30]} 35. Rhg1 {[%clk 0:00:11]}  Kf7 {[%clk 0:00:30]} 36. Ne5+ {[%clk 0:00:10]}  fxe5 {[%clk 0:00:20]} 37. fxe5+ {[%clk 0:00:10]}  Ke8 {[%clk 0:00:20]} 38. Rg8+ {[%clk 0:00:08]}  Kd7 {[%clk 0:00:20]} 39. Rf7+ {[%clk 0:00:08]}  Kc8 {[%clk 0:00:21]} 40. Rxd8+ {[%clk 0:00:04]}  Kxd8 {[%clk 0:00:22]} 41. Rf8+ {[%clk 0:00:03]}  Ke7 {[%clk 0:00:21]} 42. Rh8 {[%clk 0:00:03]}  c2 {[%clk 0:00:18]} 43. Rh7+ {[%clk 0:00:04]}  Ke8 {[%clk 0:00:18]} 44. Rh8+ {[%clk 0:00:04]}  Kf7 {[%clk 0:00:18]} 45. Kd2 {[%clk 0:00:04]}  c1=B+ {[%clk 0:00:14]} 46. Kxc1 {[%clk 0:00:04]}  Qc4+ {[%clk 0:00:15]} 47. Kb1 {[%clk 0:00:04]}  Qd3+ {[%clk 0:00:12]} 48. Ka2 {[%clk 0:00:04]}  Qxd4 {[%clk 0:00:10]} 49. Rh7+ {[%clk 0:00:04]}  Kg8 {[%clk 0:00:10]} 50. Rxa7 {[%clk 0:00:04]}  Qxc5 {[%clk 0:00:10]} 51. Ra8+ {[%clk 0:00:03]}  Kf7 {[%clk 0:00:10]} 52. Rh8 {[%clk 0:00:03]}  Qd5+ {[%clk 0:00:10]} 53. Ka3 {[%clk 0:00:03]}  Qa5+ {[%clk 0:00:09]} 54. Kb3 {[%clk 0:00:03]}  Qxe5 {[%clk 0:00:09]} 55. Rh7+ {[%clk 0:00:01]}  Kg8 {[%clk 0:00:09]} 56. Rxh6 {[%clk 0:00:02]}  Qe3+ {[%clk 0:00:10]} 57. Kc4 {[%clk 0:00:01]}  Qxh6 {[%clk 0:00:10]} 58. Kc5 {[%clk 0:00:02]}  Qc1+ {[%clk 0:00:09]} 59. Kd6 {[%clk 0:00:01]}  c5 {[%clk 0:00:09]} 60. h6 {[%clk 0:00:02]}  c4 {[%clk 0:00:08]} 61. h7+ {[%clk 0:00:03]}  Kxh7 {[%clk 0:00:08]} 62. Kxe6 {[%clk 0:00:03]}  c3 {[%clk 0:00:09]} 0-1


[Site "https://www.chess.com"]